[Event "Betsys MČR v online bleskovém šachu 2021"]
[Site "Chess.com"]
[Date "2021.04.17"]
[Round "3"]
[White "psvoboda72"]
[Black "Simago"]
[Result "0-1"]
[WhiteElo "1736"]
[BlackElo "2096"]
[TimeControl "180+1"]
[EndTime "9:28:16 PDT"]
[Termination "Uživatel Simago zvítězil na čas"]

1. Nf3 {[%clk 0:02:58.4]} 1... Nf6 {[%clk 0:02:59.3]} 2. b3 {[%clk 0:02:58.9]}
2... d6 {[%clk 0:02:58.4]} 3. Bb2 {[%clk 0:02:59.4]} 3... Nbd7 {[%clk
0:02:58.3]} 4. d4 {[%clk 0:02:57.7]} 4... g6 {[%clk 0:02:58.5]} 5. Nbd2 {[%clk
0:02:57.5]} 5... Bg7 {[%clk 0:02:56.1]} 6. g3 {[%clk 0:02:57.7]} 6... O-O {[%clk
0:02:55]} 7. Bg2 {[%clk 0:02:58.2]} 7... e5 {[%clk 0:02:54.1]} 8. dxe5 {[%clk
0:02:53.6]} 8... Ng4 {[%clk 0:02:53.5]} 9. O-O {[%clk 0:02:47.2]} 9... Ngxe5
{[%clk 0:02:53.1]} 10. Nxe5 {[%clk 0:02:45.1]} 10... Nxe5 {[%clk 0:02:49.3]} 11.
Rb1 {[%clk 0:02:24.4]} 11... c6 {[%clk 0:02:46.4]} 12. f4 {[%clk 0:02:22.5]}
12... Nd7 {[%clk 0:02:40.7]} 13. e4 {[%clk 0:02:21.1]} 13... Nf6 {[%clk
0:02:33.6]} 14. Nc4 {[%clk 0:02:17.3]} 14... Ne8 {[%clk 0:01:56.2]} 15. Bxg7
{[%clk 0:02:11.9]} 15... Kxg7 {[%clk 0:01:55.4]} 16. Qd4+ {[%clk 0:02:09.4]}
16... Qf6 {[%clk 0:01:31.3]} 17. e5 {[%clk 0:02:05.9]} 17... dxe5 {[%clk
0:01:25]} 18. fxe5 {[%clk 0:02:04.2]} 18... Qe6 {[%clk 0:01:15.2]} 19. Nd6
{[%clk 0:01:58.3]} 19... Kg8 {[%clk 0:00:53.8]} 20. c4 {[%clk 0:01:53.3]} 20...
Ng7 {[%clk 0:00:27.7]} 21. Rbd1 {[%clk 0:01:47.7]} 21... a5 {[%clk 0:00:19.7]}
22. Ne4 {[%clk 0:01:44.8]} 22... Kh8 {[%clk 0:00:10]} 23. Ng5 {[%clk 0:01:39.3]}
23... Qe7 {[%clk 0:00:07]} 24. Qh4 {[%clk 0:01:35.9]} 24... h5 {[%clk 0:00:05]}
25. Qf4 {[%clk 0:01:24.9]} 25... Bg4 {[%clk 0:00:03.3]} 26. Rd6 {[%clk
0:01:18.9]} 26... Be6 {[%clk 0:00:03.1]} 27. Rfd1 {[%clk 0:01:13.8]} 27... Rad8
{[%clk 0:00:01.9]} 28. Nxe6 {[%clk 0:01:09.6]} 28... fxe6 {[%clk 0:00:01.9]} 29.
Rxd8 {[%clk 0:01:04.9]} 29... Rxd8 {[%clk 0:00:02.8]} 30. Rxd8+ {[%clk
0:00:58.5]} 30... Qxd8 {[%clk 0:00:02.8]} 31. Bf1 {[%clk 0:00:52.8]} 31... Qd1
{[%clk 0:00:02.3]} 32. Qf8+ {[%clk 0:00:47.6]} 32... Kh7 {[%clk 0:00:02.5]} 33.
Qf2 {[%clk 0:00:43.2]} 33... Qd7 {[%clk 0:00:02]} 34. Qe3 {[%clk 0:00:30.8]}
34... Nf5 {[%clk 0:00:02.9]} 35. Qd3 {[%clk 0:00:26.5]} 35... Qxd3 {[%clk
0:00:02.8]} 36. Bxd3 {[%clk 0:00:25.8]} 36... c5 {[%clk 0:00:02.2]} 37. Be4
{[%clk 0:00:23.4]} 37... b6 {[%clk 0:00:02.4]} 38. Kf2 {[%clk 0:00:23.6]} 38...
Kh6 {[%clk 0:00:02.8]} 39. Ke2 {[%clk 0:00:22.5]} 39... Ne7 {[%clk 0:00:03]} 40.
Bb7 {[%clk 0:00:20.1]} 40... g5 {[%clk 0:00:03.3]} 41. Ke3 {[%clk 0:00:17.5]}
41... Ng6 {[%clk 0:00:03.5]} 42. Ke4 {[%clk 0:00:16.8]} 42... Kg7 {[%clk
0:00:03.7]} 43. Bc8 {[%clk 0:00:15.5]} 43... Kf7 {[%clk 0:00:04.1]} 44. a3
{[%clk 0:00:14.4]} 44... Ke7 {[%clk 0:00:04.5]} 45. a4 {[%clk 0:00:13.4]} 45...
Nf8 {[%clk 0:00:04.2]} 46. Bb7 {[%clk 0:00:12.6]} 46... Nd7 {[%clk 0:00:03.7]}
47. Bc6 {[%clk 0:00:11.9]} 47... Nf8 {[%clk 0:00:03.4]} 48. Bb7 {[%clk
0:00:11.2]} 48... Ng6 {[%clk 0:00:03.4]} 49. Bc6 {[%clk 0:00:10.7]} 49... Nh8
{[%clk 0:00:03.2]} 50. Bb7 {[%clk 0:00:09.6]} 50... Kd7 {[%clk 0:00:03.6]} 51.
Ba6 {[%clk 0:00:08.3]} 51... Kc7 {[%clk 0:00:02.4]} 52. Bb5 {[%clk 0:00:07.8]}
52... Nf7 {[%clk 0:00:01.2]} 53. Be8 {[%clk 0:00:06.5]} 53... Nh6 {[%clk
0:00:01.4]} 54. Bxh5 {[%clk 0:00:05.5]} 54... Kd8 {[%clk 0:00:01.6]} 55. h3
{[%clk 0:00:02.4]} 55... Ke7 {[%clk 0:00:01.4]} 0-1

[Event "Betsys MČR v online bleskovém šachu 2021"]
[Site "Chess.com"]
[Date "2021.04.17"]
[Round "3"]
[White "Marcus_Aurelius_CZ"]
[Black "SanyH"]
[Result "1-0"]
[WhiteElo "1390"]
[BlackElo "1594"]
[TimeControl "180+1"]
[EndTime "9:28:16 PDT"]
[Termination "Uživatel Marcus_Aurelius_CZ zvítězil na čas"]

1. e4 {[%clk 0:03:00.9]} 1... c5 {[%clk 0:02:59.8]} 2. Nf3 {[%clk 0:02:57.3]}
2... Nc6 {[%clk 0:02:59.9]} 3. Bc4 {[%clk 0:02:56.9]} 3... g6 {[%clk 0:02:58.6]}
4. c3 {[%clk 0:02:55.5]} 4... Bg7 {[%clk 0:02:58.1]} 5. d3 {[%clk 0:02:55.7]}
5... Nf6 {[%clk 0:02:56.7]} 6. Be3 {[%clk 0:02:55.8]} 6... d6 {[%clk 0:02:55.1]}
7. h3 {[%clk 0:02:55.7]} 7... O-O {[%clk 0:02:53.9]} 8. O-O {[%clk 0:02:54.8]}
8... Bd7 {[%clk 0:02:51.7]} 9. Nbd2 {[%clk 0:02:55.2]} 9... Rc8 {[%clk
0:02:44.9]} 10. Re1 {[%clk 0:02:55.4]} 10... a6 {[%clk 0:02:37.2]} 11. Nf1
{[%clk 0:02:53.6]} 11... b5 {[%clk 0:02:35.6]} 12. Bb3 {[%clk 0:02:53.1]} 12...
a5 {[%clk 0:02:21.8]} 13. Bc2 {[%clk 0:02:49.8]} 13... Be6 {[%clk 0:02:11.7]}
14. Ng3 {[%clk 0:02:45.3]} 14... Ne8 {[%clk 0:02:02.2]} 15. Qd2 {[%clk
0:02:41.1]} 15... Ne5 {[%clk 0:02:00.5]} 16. Nxe5 {[%clk 0:02:39.2]} 16... Bxe5
{[%clk 0:02:01]} 17. f4 {[%clk 0:02:39]} 17... Bg7 {[%clk 0:01:59.7]} 18. Rf1
{[%clk 0:02:38.9]} 18... d5 {[%clk 0:01:56.2]} 19. f5 {[%clk 0:02:34.5]} 19...
Bd7 {[%clk 0:01:54.4]} 20. fxg6 {[%clk 0:02:29]} 20... hxg6 {[%clk 0:01:46.5]}
21. exd5 {[%clk 0:02:27.8]} 21... Nf6 {[%clk 0:01:41.7]} 22. d4 {[%clk
0:02:22.4]} 22... Nxd5 {[%clk 0:01:36]} 23. Bh6 {[%clk 0:02:20.1]} 23... cxd4
{[%clk 0:01:29.8]} 24. Bxg7 {[%clk 0:02:16.2]} 24... Kxg7 {[%clk 0:01:28]} 25.
Qxd4+ {[%clk 0:02:15.8]} 25... Nf6 {[%clk 0:01:26]} 26. Rad1 {[%clk 0:02:12.6]}
26... Qc7 {[%clk 0:01:18.6]} 27. Nh5+ {[%clk 0:02:10.3]} 27... gxh5 {[%clk
0:01:11]} 28. Qe3 {[%clk 0:02:01.1]} 28... Qc5 {[%clk 0:01:08.7]} 29. Qxc5
{[%clk 0:01:58.5]} 29... Rxc5 {[%clk 0:01:08.4]} 30. Rd3 {[%clk 0:01:48.4]}
30... Bf5 {[%clk 0:01:03.9]} 31. Rg3+ {[%clk 0:01:47.4]} 31... Bg6 {[%clk
0:00:58.4]} 32. Re1 {[%clk 0:01:44.7]} 32... e6 {[%clk 0:00:54.2]} 33. Bxg6
{[%clk 0:01:39.4]} 33... fxg6 {[%clk 0:00:53.5]} 34. Rxe6 {[%clk 0:01:38.5]}
34... Nd5 {[%clk 0:00:50.2]} 35. Rgxg6+ {[%clk 0:01:29.4]} 35... Kf7 {[%clk
0:00:32.9]} 36. Ra6 {[%clk 0:01:24.7]} 36... Ne3 {[%clk 0:00:29.8]} 37. Rgb6
{[%clk 0:01:18]} 37... b4 {[%clk 0:00:26.4]} 38. Rf6+ {[%clk 0:01:09.2]} 38...
Kg7 {[%clk 0:00:23.7]} 39. Rg6+ {[%clk 0:01:09.3]} 39... Kf7 {[%clk 0:00:23]}
40. Raf6+ {[%clk 0:00:57.4]} 40... Ke7 {[%clk 0:00:22]} 41. Re6+ {[%clk
0:00:57.3]} 41... Kf7 {[%clk 0:00:21.8]} 42. Rgf6+ {[%clk 0:00:55.4]} 42... Kg7
{[%clk 0:00:21.5]} 43. Rxf8 {[%clk 0:00:54.3]} 43... Kxf8 {[%clk 0:00:21.5]} 44.
Rxe3 {[%clk 0:00:54.4]} 44... bxc3 {[%clk 0:00:21.1]} 45. Rxc3 {[%clk
0:00:53.9]} 45... Rb5 {[%clk 0:00:19.8]} 46. b3 {[%clk 0:00:53.5]} 46... Kf7
{[%clk 0:00:19.2]} 47. a4 {[%clk 0:00:52.7]} 47... Rb6 {[%clk 0:00:16.4]} 48.
Kf2 {[%clk 0:00:50.4]} 48... Kf6 {[%clk 0:00:15.5]} 49. Kf3 {[%clk 0:00:49.9]}
49... Ke6 {[%clk 0:00:14.9]} 50. g4 {[%clk 0:00:47.5]} 50... hxg4+ {[%clk
0:00:13.6]} 51. hxg4 {[%clk 0:00:47]} 51... Rb4 {[%clk 0:00:12.4]} 52. Rc5
{[%clk 0:00:45.7]} 52... Rxb3+ {[%clk 0:00:11.8]} 53. Kf4 {[%clk 0:00:45.5]}
53... Rb4+ {[%clk 0:00:11.3]} 54. Kg3 {[%clk 0:00:44]} 54... Rxa4 {[%clk
0:00:11.5]} 55. Kh4 {[%clk 0:00:41.7]} 55... Kf6 {[%clk 0:00:09.4]} 56. Rb5
{[%clk 0:00:39]} 56... Kg6 {[%clk 0:00:08.6]} 57. Rb6+ {[%clk 0:00:38.6]} 57...
Kf7 {[%clk 0:00:08.5]} 58. Ra6 {[%clk 0:00:38.2]} 58... Ra1 {[%clk 0:00:08.3]}
59. Kg5 {[%clk 0:00:36.7]} 59... a4 {[%clk 0:00:08.5]} 60. Ra7+ {[%clk
0:00:36.3]} 60... Ke6 {[%clk 0:00:07.6]} 61. Kg6 {[%clk 0:00:36.2]} 61... a3
{[%clk 0:00:06.7]} 62. g5 {[%clk 0:00:31.4]} 62... a2 {[%clk 0:00:06.6]} 63. Kg7
{[%clk 0:00:30.6]} 63... Kf5 {[%clk 0:00:05.3]} 64. Ra5+ {[%clk 0:00:28.9]}
64... Kg4 {[%clk 0:00:03.6]} 65. g6 {[%clk 0:00:28.1]} 1-0

[Event "Betsys MČR v online bleskovém šachu 2021"]
[Site "Chess.com"]
[Date "2021.04.17"]
[Round "3"]
[White "CZMaster666"]
[Black "petiva3"]
[Result "1-0"]
[WhiteElo "1864"]
[BlackElo "1345"]
[TimeControl "180+1"]
[EndTime "9:28:23 PDT"]
[Termination "Uživatel CZMaster666 zvítězil matem"]

1. e4 {[%clk 0:02:52.7]} 1... e5 {[%clk 0:02:59.7]} 2. Nf3 {[%clk 0:02:52.7]}
2... Nc6 {[%clk 0:02:59.3]} 3. Bb5 {[%clk 0:02:52.8]} 3... Nge7 {[%clk
0:02:58.8]} 4. O-O {[%clk 0:02:52.5]} 4... g6 {[%clk 0:02:58.8]} 5. c3 {[%clk
0:02:52.6]} 5... Bg7 {[%clk 0:02:59]} 6. d4 {[%clk 0:02:50.5]} 6... exd4 {[%clk
0:02:59.2]} 7. cxd4 {[%clk 0:02:51.2]} 7... d5 {[%clk 0:02:52.9]} 8. e5 {[%clk
0:02:51.5]} 8... O-O {[%clk 0:02:49.7]} 9. Bg5 {[%clk 0:02:50.5]} 9... f6 {[%clk
0:02:37.7]} 10. Bh4 {[%clk 0:02:40.7]} 10... fxe5 {[%clk 0:02:29]} 11. Bxc6
{[%clk 0:02:38.2]} 11... bxc6 {[%clk 0:02:27.8]} 12. Nxe5 {[%clk 0:02:38.1]}
12... Bxe5 {[%clk 0:02:14.5]} 13. dxe5 {[%clk 0:02:39]} 13... Ba6 {[%clk
0:02:07.8]} 14. Re1 {[%clk 0:02:28.4]} 14... Qd7 {[%clk 0:02:08]} 15. e6 {[%clk
0:02:18.2]} 15... Qd6 {[%clk 0:02:02.1]} 16. Nc3 {[%clk 0:02:14.5]} 16... Nf5
{[%clk 0:01:58.7]} 17. Qg4 {[%clk 0:01:42.1]} 17... Nxh4 {[%clk 0:01:54.4]} 18.
Qxh4 {[%clk 0:01:42.7]} 18... Rae8 {[%clk 0:01:51.2]} 19. Qh3 {[%clk 0:01:20.7]}
19... Qf4 {[%clk 0:01:42.4]} 20. f3 {[%clk 0:01:11.7]} 20... Rf6 {[%clk
0:01:34.9]} 21. e7 {[%clk 0:01:09.6]} 21... Qd6 {[%clk 0:01:25.2]} 22. Qh4
{[%clk 0:00:31.8]} 22... Rf7 {[%clk 0:00:57.9]} 23. Qa4 {[%clk 0:00:25.5]} 23...
Bc4 {[%clk 0:00:46.8]} 24. b3 {[%clk 0:00:24.7]} 24... Bd3 {[%clk 0:00:42.4]}
25. Qxa7 {[%clk 0:00:18.1]} 25... Rfxe7 {[%clk 0:00:41.5]} 26. Rxe7 {[%clk
0:00:17.2]} 26... Qxe7 {[%clk 0:00:36.3]} 27. Rd1 {[%clk 0:00:18.1]} 27... Bf5
{[%clk 0:00:30.5]} 28. g4 {[%clk 0:00:11.7]} 28... Bd7 {[%clk 0:00:28.9]} 29.
Qf2 {[%clk 0:00:09.3]} 29... Qe3 {[%clk 0:00:26.2]} 30. Kg2 {[%clk 0:00:10.2]}
30... Qxf2+ {[%clk 0:00:25.1]} 31. Kxf2 {[%clk 0:00:11.1]} 31... Kg7 {[%clk
0:00:23]} 32. Na4 {[%clk 0:00:11.3]} 32... Ra8 {[%clk 0:00:18.6]} 33. Nc5 {[%clk
0:00:09.2]} 33... Be8 {[%clk 0:00:18.7]} 34. a4 {[%clk 0:00:09.5]} 34... Rb8
{[%clk 0:00:17.3]} 35. b4 {[%clk 0:00:09.6]} 35... Rxb4 {[%clk 0:00:16.6]} 36.
Re1 {[%clk 0:00:10.4]} 36... Bf7 {[%clk 0:00:15.3]} 37. Re7 {[%clk 0:00:10.8]}
37... Rb2+ {[%clk 0:00:13.6]} 38. Kg3 {[%clk 0:00:09.6]} 38... Kg8 {[%clk
0:00:11.1]} 39. Rxc7 {[%clk 0:00:09.2]} 39... Rc2 {[%clk 0:00:09.1]} 40. Rxc6
{[%clk 0:00:09.6]} 40... Be8 {[%clk 0:00:07.4]} 41. Rc8 {[%clk 0:00:09.6]} 41...
Kf8 {[%clk 0:00:07.1]} 42. a5 {[%clk 0:00:09.8]} 42... d4 {[%clk 0:00:05.6]} 43.
Nd7+ {[%clk 0:00:09.5]} 43... Ke7 {[%clk 0:00:04.6]} 44. Rxc2 {[%clk 0:00:10.4]}
44... Bxd7 {[%clk 0:00:01.8]} 45. Rd2 {[%clk 0:00:10.6]} 45... Ke6 {[%clk
0:00:02]} 46. Rxd4 {[%clk 0:00:11.5]} 46... Ke5 {[%clk 0:00:02.2]} 47. Re4+
{[%clk 0:00:11.9]} 47... Kd5 {[%clk 0:00:02.4]} 48. Re1 {[%clk 0:00:11.3]} 48...
Kc6 {[%clk 0:00:02.6]} 49. Rd1 {[%clk 0:00:11.2]} 49... Bc8 {[%clk 0:00:01.9]}
50. Rc1+ {[%clk 0:00:11.1]} 50... Kb7 {[%clk 0:00:02.1]} 51. Rxc8 {[%clk
0:00:11.1]} 51... Kxc8 {[%clk 0:00:02.5]} 52. Kf4 {[%clk 0:00:11.8]} 52... Kb7
{[%clk 0:00:03]} 53. Kg5 {[%clk 0:00:12.7]} 53... Ka6 {[%clk 0:00:03.5]} 54. Kh6
{[%clk 0:00:13.6]} 54... Kxa5 {[%clk 0:00:04.2]} 55. Kxh7 {[%clk 0:00:14.5]}
55... Kb5 {[%clk 0:00:04.9]} 56. Kxg6 {[%clk 0:00:15]} 56... Kc5 {[%clk
0:00:05.8]} 57. f4 {[%clk 0:00:15.2]} 57... Kd5 {[%clk 0:00:06.7]} 58. f5 {[%clk
0:00:16.1]} 58... Kd6 {[%clk 0:00:06.8]} 59. f6 {[%clk 0:00:17]} 59... Kd7
{[%clk 0:00:06.8]} 60. f7 {[%clk 0:00:17.9]} 60... Ke7 {[%clk 0:00:07.2]} 61.
Kg7 {[%clk 0:00:18.4]} 61... Ke6 {[%clk 0:00:07]} 62. f8=Q {[%clk 0:00:19.3]}
62... Kd7 {[%clk 0:00:07.1]} 63. Qf5+ {[%clk 0:00:19.7]} 63... Kc6 {[%clk
0:00:07.3]} 64. Kf6 {[%clk 0:00:20.6]} 64... Kd6 {[%clk 0:00:07.5]} 65. Qe5+
{[%clk 0:00:20.9]} 65... Kc6 {[%clk 0:00:07.6]} 66. Ke6 {[%clk 0:00:21.8]} 66...
Kb6 {[%clk 0:00:07.7]} 67. Qd5 {[%clk 0:00:22.1]} 67... Kc7 {[%clk 0:00:07.7]}
68. Qc4+ {[%clk 0:00:21.2]} 68... Kb6 {[%clk 0:00:07.6]} 69. Kd6 {[%clk
0:00:20.5]} 69... Ka7 {[%clk 0:00:07.3]} 70. Qb3 {[%clk 0:00:21]} 70... Ka6
{[%clk 0:00:07.3]} 71. Kc6 {[%clk 0:00:21.6]} 71... Ka5 {[%clk 0:00:07.7]} 72.
Qb5# {[%clk 0:00:21.7]} 1-0

[Event "Betsys MČR v online bleskovém šachu 2021"]
[Site "Chess.com"]
[Date "2021.04.17"]
[Round "3"]
[White "Cimrman"]
[Black "Lipican"]
[Result "0-1"]
[WhiteElo "2338"]
[BlackElo "2096"]
[TimeControl "180+1"]
[EndTime "9:28:28 PDT"]
[Termination "Uživatel Lipican zvítězil matem"]

1. d4 {[%clk 0:03:00.9]} 1... Nf6 {[%clk 0:02:58.6]} 2. Nf3 {[%clk 0:02:57.5]}
2... g6 {[%clk 0:02:57.7]} 3. c4 {[%clk 0:02:57]} 3... Bg7 {[%clk 0:02:57.5]} 4.
Nc3 {[%clk 0:02:56.9]} 4... d5 {[%clk 0:02:55.5]} 5. cxd5 {[%clk 0:02:52.9]}
5... Nxd5 {[%clk 0:02:54.4]} 6. e4 {[%clk 0:02:52.9]} 6... Nxc3 {[%clk
0:02:54.2]} 7. bxc3 {[%clk 0:02:53.8]} 7... O-O {[%clk 0:02:53.9]} 8. Be3 {[%clk
0:02:53]} 8... c5 {[%clk 0:02:53.1]} 9. Qd2 {[%clk 0:02:52.8]} 9... Qa5 {[%clk
0:02:48.5]} 10. Rc1 {[%clk 0:02:51.2]} 10... cxd4 {[%clk 0:02:46.9]} 11. cxd4
{[%clk 0:02:50.3]} 11... Qxd2+ {[%clk 0:02:46.2]} 12. Nxd2 {[%clk 0:02:48]}
12... Nc6 {[%clk 0:02:41.9]} 13. d5 {[%clk 0:02:36.1]} 13... Nb4 {[%clk
0:02:37.8]} 14. a3 {[%clk 0:02:27.2]} 14... Na2 {[%clk 0:02:32.7]} 15. Rc7
{[%clk 0:02:27.1]} 15... Be5 {[%clk 0:02:24.6]} 16. Rc2 {[%clk 0:02:19.9]} 16...
Nc3 {[%clk 0:02:16.5]} 17. Bd3 {[%clk 0:02:12.2]} 17... Bd7 {[%clk 0:02:10]} 18.
f4 {[%clk 0:02:00.5]} 18... Bg7 {[%clk 0:02:08]} 19. O-O {[%clk 0:01:59.7]}
19... Rfc8 {[%clk 0:01:58.4]} 20. Rfc1 {[%clk 0:01:49.4]} 20... Ba4 {[%clk
0:01:52.9]} 21. Nc4 {[%clk 0:01:30.3]} 21... Bxc2 {[%clk 0:01:45.9]} 22. Rxc2
{[%clk 0:01:31.2]} 22... Nb5 {[%clk 0:01:34.6]} 23. a4 {[%clk 0:01:21.6]} 23...
Nd6 {[%clk 0:01:32]} 24. e5 {[%clk 0:00:45]} 24... Nxc4 {[%clk 0:01:26.9]} 25.
Rxc4 {[%clk 0:00:45.1]} 25... a6 {[%clk 0:01:21.8]} 26. Kf2 {[%clk 0:00:36.9]}
26... Rxc4 {[%clk 0:01:20.2]} 27. Bxc4 {[%clk 0:00:37.8]} 27... Rc8 {[%clk
0:01:19.1]} 28. Bd3 {[%clk 0:00:34.8]} 28... Rc3 {[%clk 0:01:12.9]} 29. Be2
{[%clk 0:00:30.4]} 29... Kf8 {[%clk 0:01:05.6]} 30. a5 {[%clk 0:00:21.5]} 30...
g5 {[%clk 0:01:01.5]} 31. g3 {[%clk 0:00:20.3]} 31... gxf4 {[%clk 0:01:00.7]}
32. gxf4 {[%clk 0:00:21.2]} 32... Ra3 {[%clk 0:00:51.4]} 33. Bb6 {[%clk
0:00:17.8]} 33... Ke8 {[%clk 0:00:48]} 34. Bg4 {[%clk 0:00:16.7]} 34... Rc3
{[%clk 0:00:44.6]} 35. d6 {[%clk 0:00:16.6]} 35... exd6 {[%clk 0:00:43.3]} 36.
exd6 {[%clk 0:00:17.5]} 36... Rd3 {[%clk 0:00:42.1]} 37. Bc7 {[%clk 0:00:12.5]}
37... Bf8 {[%clk 0:00:37.9]} 38. d7+ {[%clk 0:00:07.9]} 38... Rxd7 {[%clk
0:00:36.5]} 39. Bxd7+ {[%clk 0:00:08.8]} 39... Kxd7 {[%clk 0:00:36.3]} 40. Bb6
{[%clk 0:00:09.2]} 40... Bd6 {[%clk 0:00:34.6]} 41. Kf3 {[%clk 0:00:09.3]} 41...
Bc7 {[%clk 0:00:34.6]} 42. Be3 {[%clk 0:00:06.3]} 42... Bxa5 {[%clk 0:00:33.6]}
43. Ke4 {[%clk 0:00:07.2]} 43... Ke6 {[%clk 0:00:32.8]} 44. f5+ {[%clk 0:00:07]}
44... Kd7 {[%clk 0:00:32.2]} 45. Bd4 {[%clk 0:00:05.7]} 45... Bc7 {[%clk
0:00:30.9]} 46. h4 {[%clk 0:00:04.6]} 46... b5 {[%clk 0:00:30.8]} 47. Kd5 {[%clk
0:00:05]} 47... Bb8 {[%clk 0:00:24.7]} 48. Bc5 {[%clk 0:00:04.4]} 48... a5
{[%clk 0:00:23.5]} 49. h5 {[%clk 0:00:04.7]} 49... b4 {[%clk 0:00:21.6]} 50. Kc4
{[%clk 0:00:04.5]} 50... Kc6 {[%clk 0:00:20.3]} 51. Bf8 {[%clk 0:00:04.9]} 51...
Bd6 {[%clk 0:00:19.8]} 52. Bg7 {[%clk 0:00:04.8]} 52... Kb6 {[%clk 0:00:19.1]}
53. Bd4+ {[%clk 0:00:04.1]} 53... Kc6 {[%clk 0:00:18.8]} 54. Bg7 {[%clk
0:00:05]} 54... a4 {[%clk 0:00:18.7]} 55. Bf6 {[%clk 0:00:04.6]} 55... b3 {[%clk
0:00:17]} 56. Kc3 {[%clk 0:00:04.1]} 56... Kb5 {[%clk 0:00:16.2]} 57. Bd4 {[%clk
0:00:03.7]} 57... Bb4+ {[%clk 0:00:16]} 58. Kb2 {[%clk 0:00:03.9]} 58... Kc4
{[%clk 0:00:16.6]} 59. Be5 {[%clk 0:00:04]} 59... a3+ {[%clk 0:00:17]} 60. Kb1
{[%clk 0:00:04]} 60... a2+ {[%clk 0:00:17]} 61. Ka1 {[%clk 0:00:04.4]} 61...
Bc3+ {[%clk 0:00:15.8]} 62. Bxc3 {[%clk 0:00:05]} 62... Kxc3 {[%clk 0:00:15.6]}
63. f6 {[%clk 0:00:05.9]} 63... Kc2 {[%clk 0:00:14.1]} 64. h6 {[%clk 0:00:05.6]}
64... b2+ {[%clk 0:00:14.2]} 65. Kxa2 {[%clk 0:00:06.5]} 65... b1=Q+ {[%clk
0:00:13.2]} 66. Ka3 {[%clk 0:00:07.4]} 66... Qb3# {[%clk 0:00:13.1]} 0-1

[Event "Betsys MČR v online bleskovém šachu 2021"]
[Site "Chess.com"]
[Date "2021.04.17"]
[Round "3"]
[White "DavidekIII"]
[Black "Millbo64"]
[Result "1-0"]
[WhiteElo "2215"]
[BlackElo "1999"]
[TimeControl "180+1"]
[EndTime "9:28:29 PDT"]
[Termination "Uživatel DavidekIII zvítězil po vzdání soupeře"]

1. d4 {[%clk 0:03:00.6]} 1... c6 {[%clk 0:03:00.2]} 2. c4 {[%clk 0:02:59.7]}
2... d5 {[%clk 0:03:00.2]} 3. Nc3 {[%clk 0:02:57.9]} 3... Nf6 {[%clk 0:02:56.3]}
4. Nf3 {[%clk 0:02:39.3]} 4... g6 {[%clk 0:02:56]} 5. Bf4 {[%clk 0:02:31.1]}
5... Bg7 {[%clk 0:02:55]} 6. e3 {[%clk 0:02:30.7]} 6... O-O {[%clk 0:02:54.4]}
7. Bd3 {[%clk 0:02:28]} 7... dxc4 {[%clk 0:02:52.1]} 8. Bxc4 {[%clk 0:02:27.1]}
8... Nbd7 {[%clk 0:02:52.7]} 9. O-O {[%clk 0:02:23.6]} 9... Nb6 {[%clk
0:02:52.7]} 10. Bb3 {[%clk 0:02:16.5]} 10... Bg4 {[%clk 0:02:52.5]} 11. h3
{[%clk 0:02:07.8]} 11... Bd7 {[%clk 0:02:45.1]} 12. Rc1 {[%clk 0:01:56.8]} 12...
Rc8 {[%clk 0:02:39.7]} 13. Qe2 {[%clk 0:01:20.4]} 13... Nfd5 {[%clk 0:02:37.2]}
14. Nxd5 {[%clk 0:01:13.8]} 14... cxd5 {[%clk 0:02:28]} 15. Ne5 {[%clk
0:01:07.3]} 15... e6 {[%clk 0:02:16.7]} 16. Rc2 {[%clk 0:00:51.6]} 16... a6
{[%clk 0:02:12.2]} 17. Rfc1 {[%clk 0:00:48.9]} 17... Bb5 {[%clk 0:02:00.1]} 18.
Qd1 {[%clk 0:00:40.4]} 18... Rxc2 {[%clk 0:01:59]} 19. Qxc2 {[%clk 0:00:37.2]}
19... f6 {[%clk 0:01:57.7]} 20. Nd3 {[%clk 0:00:28.6]} 20... Bxd3 {[%clk
0:01:52.4]} 21. Qxd3 {[%clk 0:00:27.8]} 21... Rf7 {[%clk 0:01:23.7]} 22. Qc3
{[%clk 0:00:21.1]} 22... e5 {[%clk 0:01:10.2]} 23. Bg3 {[%clk 0:00:18.6]} 23...
h5 {[%clk 0:01:05]} 24. dxe5 {[%clk 0:00:13]} 24... fxe5 {[%clk 0:01:04.3]} 25.
Bxe5 {[%clk 0:00:13.4]} 25... Bxe5 {[%clk 0:01:02.8]} 26. Qxe5 {[%clk
0:00:14.3]} 26... Qh4 {[%clk 0:00:42.5]} 27. Rf1 {[%clk 0:00:08.7]} 27... Qf6
{[%clk 0:00:26.7]} 28. Qxf6 {[%clk 0:00:08.1]} 28... Rxf6 {[%clk 0:00:26.6]} 29.
Rd1 {[%clk 0:00:08.6]} 29... Rd6 {[%clk 0:00:26.7]} 30. Rd4 {[%clk 0:00:08.7]}
30... Kf7 {[%clk 0:00:25]} 31. Kf1 {[%clk 0:00:09.1]} 31... Ke6 {[%clk
0:00:25.1]} 32. Ke2 {[%clk 0:00:06.7]} 32... Ke5 {[%clk 0:00:25.4]} 33. f4+
{[%clk 0:00:03.7]} 33... Ke6 {[%clk 0:00:22.4]} 34. Kf3 {[%clk 0:00:04.3]} 34...
Kd7 {[%clk 0:00:20.4]} 35. g4 {[%clk 0:00:04.7]} 35... hxg4+ {[%clk 0:00:19.8]}
36. hxg4 {[%clk 0:00:05.4]} 36... Kc6 {[%clk 0:00:20.3]} 37. Rd2 {[%clk
0:00:04.9]} 37... Kc5 {[%clk 0:00:20.4]} 38. Rc2+ {[%clk 0:00:04.8]} 38... Kb5
{[%clk 0:00:20.7]} 39. Rc7 {[%clk 0:00:03.9]} 39... Rd7 {[%clk 0:00:18.3]} 40.
Rxd7 {[%clk 0:00:03.7]} 40... Nxd7 {[%clk 0:00:18.7]} 41. Bxd5 {[%clk
0:00:04.3]} 41... b6 {[%clk 0:00:18.6]} 42. Bf7 {[%clk 0:00:04.7]} 42... Nf8
{[%clk 0:00:18.3]} 43. f5 {[%clk 0:00:04.3]} 43... gxf5 {[%clk 0:00:18.6]} 44.
gxf5 {[%clk 0:00:05.2]} 44... Kc5 {[%clk 0:00:19.2]} 45. e4 {[%clk 0:00:05.5]}
45... Kd4 {[%clk 0:00:19.4]} 46. b3 {[%clk 0:00:05.7]} 46... Ke5 {[%clk
0:00:19.3]} 47. a4 {[%clk 0:00:05.8]} 47... a5 {[%clk 0:00:19.5]} 48. Bd5 {[%clk
0:00:05.7]} 48... Nd7 {[%clk 0:00:19.9]} 49. Bc6 {[%clk 0:00:05.7]} 49... Nc5
{[%clk 0:00:19.9]} 50. Bd5 {[%clk 0:00:05]} 50... Nd7 {[%clk 0:00:20]} 51. Kg4
{[%clk 0:00:04.7]} 51... Nf6+ {[%clk 0:00:19.6]} 52. Kg5 {[%clk 0:00:05.2]}
52... Nh7+ {[%clk 0:00:14.4]} 53. Kg6 {[%clk 0:00:04.9]} 53... Nf6 {[%clk
0:00:15]} 54. Kf7 {[%clk 0:00:04.8]} 54... Ng4 {[%clk 0:00:10.9]} 55. Bc6 {[%clk
0:00:04.1]} 55... Nf6 {[%clk 0:00:10.6]} 56. Ke7 {[%clk 0:00:03.3]} 56... Ng4
{[%clk 0:00:05.6]} 57. Kd7 {[%clk 0:00:03.5]} 57... Nf6+ {[%clk 0:00:02.5]} 58.
Kc7 {[%clk 0:00:03.5]} 58... b5 {[%clk 0:00:03.4]} 59. axb5 {[%clk 0:00:03]}
59... Nxe4 {[%clk 0:00:03.3]} 60. Bxe4 {[%clk 0:00:02]} 1-0